[Event "*** Titled Tuesday Blitz"]
[Site "Chess.com"]
[Date "2020.11.10"]
[Round "3"]
[White "Matols"]
[Black "nelsoncopa"]
[Result "1-0"]
[WhiteElo "2265"]
[BlackElo "1889"]
[TimeControl "180+1"]
[EndTime "10:31:15 PST"]
[Termination "Matols won on time"]

1. d4 {[%clk 0:03:00.9]} 1... d5 {[%clk 0:02:50.4]} 2. c4 {[%clk 0:03:00.5]}
2... e6 {[%clk 0:02:48.6]} 3. Nf3 {[%clk 0:03:00.6]} 3... Nf6 {[%clk 0:02:48]}
4. g3 {[%clk 0:03:00.7]} 4... c6 {[%clk 0:02:47.9]} 5. Bg2 {[%clk 0:03:00.3]}
5... Be7 {[%clk 0:02:47.4]} 6. O-O {[%clk 0:03:00.2]} 6... O-O {[%clk
0:02:46.9]} 7. Qc2 {[%clk 0:03:00.4]} 7... Nbd7 {[%clk 0:02:46.1]} 8. Nbd2
{[%clk 0:02:59.4]} 8... Re8 {[%clk 0:02:45.3]} 9. Rd1 {[%clk 0:02:54.2]} 9...
Nf8 {[%clk 0:02:44.3]} 10. e4 {[%clk 0:02:53.6]} 10... dxe4 {[%clk 0:02:43.4]}
11. Nxe4 {[%clk 0:02:53.7]} 11... Nxe4 {[%clk 0:02:43]} 12. Qxe4 {[%clk
0:02:53.9]} 12... Ng6 {[%clk 0:02:37.6]} 13. h4 {[%clk 0:02:36.9]} 13... Qb6
{[%clk 0:02:08.3]} 14. c5 {[%clk 0:02:34.1]} 14... Qa5 {[%clk 0:01:51.8]} 15.
Bd2 {[%clk 0:02:29.3]} 15... Qc7 {[%clk 0:01:48.9]} 16. h5 {[%clk 0:02:26.3]}
16... Nf8 {[%clk 0:01:46.7]} 17. h6 {[%clk 0:02:12.1]} 17... Ng6 {[%clk
0:01:41.1]} 18. hxg7 {[%clk 0:02:07.7]} 18... Kxg7 {[%clk 0:01:40.4]} 19. b4
{[%clk 0:02:04.9]} 19... Bd7 {[%clk 0:01:27.4]} 20. Ne5 {[%clk 0:02:03.8]} 20...
Bf6 {[%clk 0:01:23.3]} 21. Ng4 {[%clk 0:01:38.6]} 21... Be7 {[%clk 0:01:10.8]}
22. Bh6+ {[%clk 0:01:37.4]} 22... Kg8 {[%clk 0:01:09.7]} 23. Ne5 {[%clk
0:01:28.2]} 23... f5 {[%clk 0:01:00.4]} 24. Qe3 {[%clk 0:01:21.2]} 24... Bf6
{[%clk 0:00:56.3]} 25. f4 {[%clk 0:01:11.8]} 25... Rad8 {[%clk 0:00:51.7]} 26.
Kf2 {[%clk 0:01:09.7]} 26... Bc8 {[%clk 0:00:50.3]} 27. Rh1 {[%clk 0:01:04.7]}
27... Bxe5 {[%clk 0:00:23.8]} 28. fxe5 {[%clk 0:00:58.8]} 28... Qd7 {[%clk
0:00:22.1]} 29. Rad1 {[%clk 0:00:57]} 29... Qe7 {[%clk 0:00:19.8]} 30. Bg5
{[%clk 0:00:55.9]} 30... Qf7 {[%clk 0:00:19]} 31. Bf6 {[%clk 0:00:50.6]} 31...
Rd5 {[%clk 0:00:08.7]} 32. Bxd5 {[%clk 0:00:48.8]} 32... cxd5 {[%clk 0:00:08.4]}
33. Qh6 {[%clk 0:00:47]} 33... Bd7 {[%clk 0:00:07.3]} 34. Rh2 {[%clk 0:00:42.9]}
1-0

[Event "*** Titled Tuesday Blitz"]
[Site "Chess.com"]
[Date "2020.11.10"]
[Round "3"]
[White "Keures"]
[Black "catzapto"]
[Result "1-0"]
[WhiteElo "2335"]
[BlackElo "2128"]
[TimeControl "180+1"]
[EndTime "10:31:20 PST"]
[Termination "Keures won on time"]

1. d4 {[%clk 0:03:00.6]} 1... Nf6 {[%clk 0:02:59.5]} 2. c4 {[%clk 0:02:59.6]}
2... e6 {[%clk 0:02:59.6]} 3. Nc3 {[%clk 0:02:59.2]} 3... c6 {[%clk 0:03:00]} 4.
e4 {[%clk 0:02:56.6]} 4... d5 {[%clk 0:02:56.2]} 5. e5 {[%clk 0:02:54.9]} 5...
Nfd7 {[%clk 0:02:56.5]} 6. f4 {[%clk 0:02:49.5]} 6... a6 {[%clk 0:02:54.2]} 7.
c5 {[%clk 0:02:47]} 7... b6 {[%clk 0:02:53.2]} 8. cxb6 {[%clk 0:02:45.6]} 8...
Qxb6 {[%clk 0:02:49.8]} 9. Nf3 {[%clk 0:02:43.1]} 9... c5 {[%clk 0:02:50.1]} 10.
Na4 {[%clk 0:02:35.5]} 10... Qa7 {[%clk 0:02:49.4]} 11. Be3 {[%clk 0:02:28.9]}
11... c4 {[%clk 0:02:40.9]} 12. Be2 {[%clk 0:02:15.3]} 12... Bb4+ {[%clk
0:02:39.6]} 13. Bd2 {[%clk 0:02:13.1]} 13... Nc6 {[%clk 0:02:36.6]} 14. O-O
{[%clk 0:02:03.5]} 14... Nxd4 {[%clk 0:02:37]} 15. Kh1 {[%clk 0:01:49.8]} 15...
Bxd2 {[%clk 0:02:31.8]} 16. Qxd2 {[%clk 0:01:40.9]} 16... Nxe2 {[%clk
0:02:31.8]} 17. Qxe2 {[%clk 0:01:38.8]} 17... O-O {[%clk 0:02:31.8]} 18. f5
{[%clk 0:01:35.2]} 18... Nc5 {[%clk 0:02:26]} 19. f6 {[%clk 0:01:28.3]} 19...
gxf6 {[%clk 0:02:18.2]} 20. exf6 {[%clk 0:01:27]} 20... Ne4 {[%clk 0:02:18.4]}
21. Ne5 {[%clk 0:01:18.7]} 21... Kh8 {[%clk 0:01:53.2]} 22. Nb6 {[%clk
0:00:25.3]} 22... Qb8 {[%clk 0:00:12.5]} 23. Qg4 {[%clk 0:00:15.7]} 23... Ng5
{[%clk 0:00:06.5]} 24. Qxg5 {[%clk 0:00:13.5]} 1-0

[Event "*** Titled Tuesday Blitz"]
[Site "Chess.com"]
[Date "2020.11.10"]
[Round "3"]
[White "TurboSteen"]
[Black "martynkovaelena"]
[Result "1-0"]
[WhiteElo "2028"]
[BlackElo "2264"]
[TimeControl "180+1"]
[EndTime "10:31:20 PST"]
[Termination "TurboSteen won on time"]

1. e4 {[%clk 0:03:00.9]} 1... c5 {[%clk 0:02:57.4]} 2. Nc3 {[%clk 0:02:59.8]}
2... Nc6 {[%clk 0:02:56.7]} 3. Bb5 {[%clk 0:02:58.2]} 3... Nd4 {[%clk
0:02:56.2]} 4. Nf3 {[%clk 0:02:56.4]} 4... e6 {[%clk 0:02:55.2]} 5. O-O {[%clk
0:02:53.5]} 5... Nxb5 {[%clk 0:02:52.1]} 6. Nxb5 {[%clk 0:02:52.2]} 6... d6
{[%clk 0:02:52.6]} 7. d4 {[%clk 0:02:51.1]} 7... cxd4 {[%clk 0:02:51.5]} 8. Qxd4
{[%clk 0:02:49.5]} 8... a6 {[%clk 0:02:43.2]} 9. Nc3 {[%clk 0:02:47.3]} 9... Nf6
{[%clk 0:02:38.3]} 10. Bg5 {[%clk 0:02:44.6]} 10... Be7 {[%clk 0:02:37.3]} 11.
Rad1 {[%clk 0:02:41.1]} 11... O-O {[%clk 0:02:35.2]} 12. e5 {[%clk 0:02:34.3]}
12... dxe5 {[%clk 0:02:31.9]} 13. Qxe5 {[%clk 0:02:33.6]} 13... Bd7 {[%clk
0:02:09.9]} 14. Rd4 {[%clk 0:02:23.6]} 14... Qe8 {[%clk 0:01:55.3]} 15. Rfd1
{[%clk 0:02:15.6]} 15... Bc6 {[%clk 0:01:54.7]} 16. Rh4 {[%clk 0:01:59.4]} 16...
Nd7 {[%clk 0:01:31.3]} 17. Qf4 {[%clk 0:01:41.5]} 17... e5 {[%clk 0:01:15.7]}
18. Qg3 {[%clk 0:01:27.7]} 18... Bxf3 {[%clk 0:01:08.4]} 19. gxf3 {[%clk
0:01:25.5]} 19... Bxg5 {[%clk 0:01:02.5]} 20. Qxg5 {[%clk 0:01:24]} 20... Qe6
{[%clk 0:00:56.3]} 21. Ne4 {[%clk 0:01:21]} 21... f6 {[%clk 0:00:22.1]} 22. Qh5
{[%clk 0:01:15.7]} 22... h6 {[%clk 0:00:21.9]} 23. Rd6 {[%clk 0:01:02.8]} 23...
Qf7 {[%clk 0:00:19.8]} 24. Qf5 {[%clk 0:01:01.3]} 24... Rad8 {[%clk 0:00:15.1]}
25. Rg4 {[%clk 0:00:59.2]} 25... Kh8 {[%clk 0:00:12.5]} 26. Rg6 {[%clk
0:00:53.7]} 26... Nb8 {[%clk 0:00:07.8]} 27. Rdxf6 {[%clk 0:00:45.6]} 27... Rd1+
{[%clk 0:00:03.4]} 28. Kg2 {[%clk 0:00:44.3]} 28... gxf6 {[%clk 0:00:03.7]} 29.
Rxh6+ {[%clk 0:00:42.3]} 29... Kg8 {[%clk 0:00:03.7]} 30. Nxf6+ {[%clk
0:00:37.6]} 30... Qxf6 {[%clk 0:00:01.4]} 31. Rxf6 {[%clk 0:00:37.2]} 31... Rxf6
{[%clk 0:00:01.4]} 32. Qxf6 {[%clk 0:00:37.1]} 32... Nc6 {[%clk 0:00:01.4]} 33.
h4 {[%clk 0:00:34.3]} 1-0

[Event "*** Titled Tuesday Blitz"]
[Site "Chess.com"]
[Date "2020.11.10"]
[Round "3"]
[White "PIwan"]
[Black "Semen_Khanin"]
[Result "0-1"]
[WhiteElo "2542"]
[BlackElo "2786"]
[TimeControl "180+1"]
[EndTime "10:31:21 PST"]
[Termination "Semen_Khanin won on time"]

1. c4 {[%clk 0:03:00.9]} 1... e5 {[%clk 0:02:59.6]} 2. Nc3 {[%clk 0:03:00.7]}
2... Nf6 {[%clk 0:02:59.2]} 3. Nf3 {[%clk 0:03:00.9]} 3... Nc6 {[%clk
0:02:59.5]} 4. e3 {[%clk 0:03:01.4]} 4... g6 {[%clk 0:02:55.8]} 5. d4 {[%clk
0:03:00.7]} 5... exd4 {[%clk 0:02:54.5]} 6. exd4 {[%clk 0:03:00.9]} 6... Bg7
{[%clk 0:02:54.4]} 7. d5 {[%clk 0:03:01.1]} 7... Ne7 {[%clk 0:02:54.1]} 8. d6
{[%clk 0:02:37.4]} 8... cxd6 {[%clk 0:02:54.2]} 9. Nb5 {[%clk 0:02:34.5]} 9...
O-O {[%clk 0:02:53.8]} 10. Nxd6 {[%clk 0:02:33.9]} 10... Nc6 {[%clk 0:02:39.1]}
11. Be2 {[%clk 0:02:31.2]} 11... Qa5+ {[%clk 0:02:30]} 12. Bd2 {[%clk
0:02:26.9]} 12... Qc5 {[%clk 0:02:29.6]} 13. Bc3 {[%clk 0:02:21.2]} 13... Ng4
{[%clk 0:02:24.1]} 14. O-O {[%clk 0:02:00.4]} 14... Bxc3 {[%clk 0:02:23]} 15.
Ne4 {[%clk 0:01:42.8]} 15... Qb6 {[%clk 0:02:02.8]} 16. bxc3 {[%clk 0:01:40.7]}
16... d6 {[%clk 0:01:52.5]} 17. Nfg5 {[%clk 0:01:32.5]} 17... Nce5 {[%clk
0:01:36.3]} 18. h3 {[%clk 0:01:05.1]} 18... h6 {[%clk 0:01:34.6]} 19. Nf3 {[%clk
0:00:38.7]} 19... Nxf3+ {[%clk 0:01:31.2]} 20. Bxf3 {[%clk 0:00:36]} 20... Ne5
{[%clk 0:01:31.4]} 21. Nf6+ {[%clk 0:00:18.5]} 21... Kg7 {[%clk 0:01:30.8]} 22.
Nd5 {[%clk 0:00:19.4]} 22... Qc5 {[%clk 0:01:29.4]} 23. Be2 {[%clk 0:00:18.6]}
23... Nxc4 {[%clk 0:01:28.7]} 24. Bxc4 {[%clk 0:00:16.3]} 24... Qxc4 {[%clk
0:01:28.4]} 25. Ne3 {[%clk 0:00:16.6]} 25... Qxc3 {[%clk 0:01:25.4]} 26. Qxd6
{[%clk 0:00:16.9]} 26... Be6 {[%clk 0:01:25.6]} 27. Rac1 {[%clk 0:00:16.1]}
27... Qa5 {[%clk 0:01:21.8]} 28. Rc5 {[%clk 0:00:13]} 28... Qxa2 {[%clk
0:01:19.7]} 29. Qe5+ {[%clk 0:00:13.6]} 29... Kh7 {[%clk 0:01:18.2]} 30. f4
{[%clk 0:00:13.5]} 30... Rae8 {[%clk 0:01:07]} 31. Qf6 {[%clk 0:00:12.6]} 31...
Bxh3 {[%clk 0:01:03.7]} 32. f5 {[%clk 0:00:05.1]} 32... Rxe3 {[%clk 0:00:41.3]}
33. fxg6+ {[%clk 0:00:04.6]} 33... Kg8 {[%clk 0:00:42]} 34. gxf7+ {[%clk
0:00:04.6]} 34... Kh7 {[%clk 0:00:42.7]} 0-1

[Event "*** Titled Tuesday Blitz"]
[Site "Chess.com"]
[Date "2020.11.10"]
[Round "3"]
[White "WeAintSurePal"]
[Black "blitzking1729"]
[Result "0-1"]
[WhiteElo "2308"]
[BlackElo "2536"]
[TimeControl "180+1"]
[EndTime "10:31:21 PST"]
[Termination "blitzking1729 won by resignation"]

1. d4 {[%clk 0:03:00.9]} 1... d6 {[%clk 0:02:57.9]} 2. Nf3 {[%clk 0:03:00.8]}
2... Nf6 {[%clk 0:02:57.9]} 3. Bg5 {[%clk 0:02:54.5]} 3... g6 {[%clk 0:02:58.8]}
4. c3 {[%clk 0:02:53.1]} 4... Bg7 {[%clk 0:02:58.2]} 5. Nbd2 {[%clk 0:02:53.2]}
5... O-O {[%clk 0:02:57.6]} 6. e4 {[%clk 0:02:53.4]} 6... c6 {[%clk 0:02:53.8]}
7. Be2 {[%clk 0:02:52.7]} 7... Bg4 {[%clk 0:02:52.4]} 8. O-O {[%clk 0:02:52.4]}
8... Nbd7 {[%clk 0:02:51.3]} 9. a4 {[%clk 0:02:51.2]} 9... Qc7 {[%clk
0:02:49.1]} 10. h3 {[%clk 0:02:50.6]} 10... Bxf3 {[%clk 0:02:48.3]} 11. Bxf3
{[%clk 0:02:51.5]} 11... e5 {[%clk 0:02:48.8]} 12. Re1 {[%clk 0:02:45.9]} 12...
Rfe8 {[%clk 0:02:47.4]} 13. a5 {[%clk 0:02:39.6]} 13... h6 {[%clk 0:02:40.8]}
14. Bh4 {[%clk 0:02:37.5]} 14... Nh7 {[%clk 0:02:35.2]} 15. Bg3 {[%clk
0:02:36.2]} 15... Ng5 {[%clk 0:02:33.9]} 16. Nc4 {[%clk 0:02:29.4]} 16... Rad8
{[%clk 0:02:28.8]} 17. h4 {[%clk 0:02:23.3]} 17... Ne6 {[%clk 0:02:26.2]} 18.
dxe5 {[%clk 0:02:18.1]} 18... Nxe5 {[%clk 0:02:24.5]} 19. Bxe5 {[%clk
0:02:14.7]} 19... dxe5 {[%clk 0:02:23.3]} 20. Qe2 {[%clk 0:02:12.4]} 20... Qe7
{[%clk 0:02:21.6]} 21. g3 {[%clk 0:02:11]} 21... Nc5 {[%clk 0:02:19.4]} 22. Rad1
{[%clk 0:02:04.9]} 22... Qc7 {[%clk 0:02:17.6]} 23. Qe3 {[%clk 0:02:02.1]} 23...
b6 {[%clk 0:02:12.9]} 24. h5 {[%clk 0:01:53.4]} 24... g5 {[%clk 0:02:11.6]} 25.
Bg4 {[%clk 0:01:47.4]} 25... Rxd1 {[%clk 0:02:03.9]} 26. Rxd1 {[%clk 0:01:47.2]}
26... Rd8 {[%clk 0:02:03.5]} 27. Rxd8+ {[%clk 0:01:45.7]} 27... Qxd8 {[%clk
0:02:04.4]} 28. axb6 {[%clk 0:01:21.2]} 28... axb6 {[%clk 0:02:05.3]} 29. Kg2
{[%clk 0:01:18.1]} 29... Qc7 {[%clk 0:01:57]} 30. Bf5 {[%clk 0:01:15.8]} 30...
Bf8 {[%clk 0:01:55.6]} 31. b4 {[%clk 0:01:10.7]} 31... Na4 {[%clk 0:01:52.3]}
32. Qd3 {[%clk 0:01:09.8]} 32... b5 {[%clk 0:01:49.9]} 33. Na5 {[%clk
0:01:07.4]} 33... c5 {[%clk 0:01:48.3]} 34. Qxb5 {[%clk 0:01:00.3]} 34... Nxc3
{[%clk 0:01:46.9]} 35. Qc4 {[%clk 0:01:00.5]} 35... Na4 {[%clk 0:01:37.6]} 36.
b5 {[%clk 0:00:53.1]} 36... Qxa5 {[%clk 0:01:37.1]} 37. Bg6 {[%clk 0:00:51.1]}
37... Qa7 {[%clk 0:01:32.4]} 38. Bxf7+ {[%clk 0:00:43.6]} 38... Qxf7 {[%clk
0:01:20.3]} 39. Qxa4 {[%clk 0:00:43.2]} 39... c4 {[%clk 0:01:20.5]} 40. b6
{[%clk 0:00:42.1]} 40... c3 {[%clk 0:01:14.3]} 41. Qc6 {[%clk 0:00:41.3]} 41...
Qb3 {[%clk 0:01:09.2]} 42. b7 {[%clk 0:00:32.8]} 42... c2 {[%clk 0:01:08.4]} 43.
Qg6+ {[%clk 0:00:30.7]} 43... Kh8 {[%clk 0:01:06]} 44. Qf6+ {[%clk 0:00:30.4]}
44... Bg7 {[%clk 0:01:05.2]} 45. Qd8+ {[%clk 0:00:29.9]} 45... Kh7 {[%clk
0:01:04.6]} 46. b8=Q {[%clk 0:00:22]} 46... Qxb8 {[%clk 0:01:02.6]} 47. Qxb8
{[%clk 0:00:22.9]} 47... c1=Q {[%clk 0:01:02]} 48. Qc7 {[%clk 0:00:20.5]} 48...
Qxc7 {[%clk 0:01:00.4]} 0-1

[Event "*** Titled Tuesday Blitz"]
[Site "Chess.com"]
[Date "2020.11.10"]
[Round "3"]
[White "CzechmVIII"]
[Black "BigAl"]
[Result "0-1"]
[WhiteElo "2144"]
[BlackElo "2486"]
[TimeControl "180+1"]
[EndTime "10:31:22 PST"]
[Termination "BigAl won on time"]

1. e4 {[%clk 0:03:00.9]} 1... c6 {[%clk 0:03:00]} 2. d4 {[%clk 0:02:59.7]} 2...
d5 {[%clk 0:03:00.6]} 3. e5 {[%clk 0:03:00]} 3... Bf5 {[%clk 0:03:01]} 4. Nc3
{[%clk 0:03:00.1]} 4... e6 {[%clk 0:03:01.5]} 5. g4 {[%clk 0:03:00.4]} 5... Bg6
{[%clk 0:03:02]} 6. Nge2 {[%clk 0:03:01]} 6... Ne7 {[%clk 0:03:02.1]} 7. f4
{[%clk 0:03:00.3]} 7... h5 {[%clk 0:03:00.6]} 8. f5 {[%clk 0:03:00.3]} 8... exf5
{[%clk 0:02:59.5]} 9. g5 {[%clk 0:03:00.7]} 9... c5 {[%clk 0:02:35.4]} 10. h4
{[%clk 0:02:42.8]} 10... cxd4 {[%clk 0:02:27.9]} 11. Nxd4 {[%clk 0:02:42.9]}
11... Nec6 {[%clk 0:02:26.7]} 12. Bb5 {[%clk 0:02:29.3]} 12... Bc5 {[%clk
0:02:14.5]} 13. Bxc6+ {[%clk 0:02:20]} 13... Nxc6 {[%clk 0:02:00.5]} 14. Nxc6
{[%clk 0:02:18.4]} 14... bxc6 {[%clk 0:02:00.4]} 15. Bf4 {[%clk 0:02:07.6]}
15... Rb8 {[%clk 0:02:00.8]} 16. Na4 {[%clk 0:01:48]} 16... O-O {[%clk
0:01:37.1]} 17. Nxc5 {[%clk 0:01:35.5]} 17... Qa5+ {[%clk 0:01:37.3]} 18. Qd2
{[%clk 0:01:35.9]} 18... Qxc5 {[%clk 0:01:37.6]} 19. O-O-O {[%clk 0:01:33]}
19... Rb4 {[%clk 0:01:24.4]} 20. c3 {[%clk 0:01:20.8]} 20... Ra4 {[%clk
0:01:14.3]} 21. Kb1 {[%clk 0:01:13.3]} 21... Qc4 {[%clk 0:01:13.1]} 22. b3
{[%clk 0:01:02.7]} 22... Qxf4 {[%clk 0:01:08.3]} 23. bxa4 {[%clk 0:00:54.3]}
23... Qxa4 {[%clk 0:01:06.6]} 24. Qb2 {[%clk 0:00:42.7]} 24... f4+ {[%clk
0:01:04.7]} 25. Ka1 {[%clk 0:00:43]} 25... Be4 {[%clk 0:01:02.4]} 26. Rd4 {[%clk
0:00:37.9]} 26... Qa6 {[%clk 0:00:57.9]} 27. Re1 {[%clk 0:00:25.9]} 27... c5
{[%clk 0:00:50]} 28. Rdxe4 {[%clk 0:00:20.3]} 28... dxe4 {[%clk 0:00:49.6]} 29.
Rxe4 {[%clk 0:00:20.4]} 29... f3 {[%clk 0:00:43.1]} 30. Re1 {[%clk 0:00:18.1]}
30... Qd3 {[%clk 0:00:36.1]} 31. g6 {[%clk 0:00:09]} 31... Qxg6 {[%clk
0:00:32.5]} 32. Qf2 {[%clk 0:00:06.2]} 32... Rb8 {[%clk 0:00:26.2]} 33. Qxf3
{[%clk 0:00:04]} 33... Qc2 {[%clk 0:00:26.4]} 0-1

[Event "*** Titled Tuesday Blitz"]
[Site "Chess.com"]
[Date "2020.11.10"]
[Round "3"]
[White "mbachez"]
[Black "Vuk2000"]
[Result "0-1"]
[WhiteElo "2407"]
[BlackElo "2660"]
[TimeControl "180+1"]
[EndTime "10:31:23 PST"]
[Termination "Vuk2000 won by resignation"]

1. e4 {[%clk 0:02:59.9]} 1... e6 {[%clk 0:03:00.3]} 2. d4 {[%clk 0:02:59.4]}
2... d5 {[%clk 0:03:00.9]} 3. Bd3 {[%clk 0:02:59.5]} 3... c5 {[%clk 0:03:00.3]}
4. exd5 {[%clk 0:02:58.5]} 4... Qxd5 {[%clk 0:02:55.1]} 5. Nc3 {[%clk 0:02:54]}
5... Qd8 {[%clk 0:02:47.3]} 6. dxc5 {[%clk 0:02:49.2]} 6... Bxc5 {[%clk
0:02:48.2]} 7. Qg4 {[%clk 0:02:47.8]} 7... Nf6 {[%clk 0:02:37]} 8. Qg3 {[%clk
0:02:45.6]} 8... Nc6 {[%clk 0:02:03.5]} 9. Bg5 {[%clk 0:02:39.8]} 9... h6 {[%clk
0:01:55.5]} 10. Bxf6 {[%clk 0:02:38.9]} 10... Qxf6 {[%clk 0:01:52.7]} 11. Nf3
{[%clk 0:02:38.3]} 11... O-O {[%clk 0:01:44.2]} 12. O-O-O {[%clk 0:02:37.4]}
12... Qe7 {[%clk 0:01:31.5]} 13. h4 {[%clk 0:02:34.8]} 13... Bd6 {[%clk
0:01:20.1]} 14. Qg4 {[%clk 0:02:29.6]} 14... Qf6 {[%clk 0:01:14.9]} 15. Bh7+
{[%clk 0:02:19]} 15... Kxh7 {[%clk 0:01:12.9]} 16. Rxd6 {[%clk 0:02:19]} 16...
e5 {[%clk 0:01:08.3]} 17. Qe4+ {[%clk 0:01:54.5]} 17... Bf5 {[%clk 0:01:07.6]}
18. Qd5 {[%clk 0:01:36.7]} 18... Qe7 {[%clk 0:00:56.8]} 19. Rd1 {[%clk
0:01:35.7]} 19... Bxc2 {[%clk 0:00:53.4]} 20. Rd7 {[%clk 0:01:30.5]} 20... Qf6
{[%clk 0:00:51.1]} 21. Rd6 {[%clk 0:01:25.1]} 21... Qf4+ {[%clk 0:00:49.5]} 22.
Rd2 {[%clk 0:01:21.4]} 22... Rad8 {[%clk 0:00:38.5]} 23. a3 {[%clk 0:00:54.9]}
23... Rxd6 {[%clk 0:00:33.4]} 24. Qxd6 {[%clk 0:00:55]} 24... Rd8 {[%clk
0:00:33.9]} 25. Qc7 {[%clk 0:00:54.4]} 25... Bg6 {[%clk 0:00:20.7]} 26. Ne2
{[%clk 0:00:50.6]} 26... Qc4+ {[%clk 0:00:19.8]} 27. Nc3 {[%clk 0:00:50.4]}
27... Rxd2 {[%clk 0:00:14.2]} 28. Nxd2 {[%clk 0:00:49.8]} 28... Qd3 {[%clk
0:00:14.3]} 29. Kd1 {[%clk 0:00:48.5]} 29... Qc2+ {[%clk 0:00:14]} 30. Ke1
{[%clk 0:00:47.8]} 30... Nd4 {[%clk 0:00:14.6]} 31. Qxb7 {[%clk 0:00:42.8]}
31... Qc1+ {[%clk 0:00:13.2]} 32. Nd1 {[%clk 0:00:42.2]} 32... Bc2 {[%clk
0:00:13.6]} 33. Qf3 {[%clk 0:00:32]} 33... Nxf3+ {[%clk 0:00:12.8]} 0-1

[Event "*** Titled Tuesday Blitz"]
[Site "Chess.com"]
[Date "2020.11.10"]
[Round "3"]
[White "tylityli"]
[Black "LittleMyMoomin"]
[Result "1-0"]
[WhiteElo "2255"]
[BlackElo "1831"]
[TimeControl "180+1"]
[EndTime "10:31:26 PST"]
[Termination "tylityli won by resignation"]

1. d4 {[%clk 0:02:59.7]} 1... Nf6 {[%clk 0:02:57.6]} 2. c4 {[%clk 0:02:58.6]}
2... e6 {[%clk 0:02:57.8]} 3. Nc3 {[%clk 0:02:58.1]} 3... Bb4 {[%clk 0:02:57.4]}
4. e3 {[%clk 0:02:57.8]} 4... O-O {[%clk 0:02:55.9]} 5. Ne2 {[%clk 0:02:57.3]}
5... c5 {[%clk 0:02:55.3]} 6. d5 {[%clk 0:02:56.9]} 6... exd5 {[%clk 0:02:52.6]}
7. cxd5 {[%clk 0:02:56.7]} 7... d6 {[%clk 0:02:51.7]} 8. g3 {[%clk 0:02:56.2]}
8... Bf5 {[%clk 0:02:38.2]} 9. Bg2 {[%clk 0:02:55.6]} 9... h6 {[%clk 0:02:36.3]}
10. O-O {[%clk 0:02:55.1]} 10... Nbd7 {[%clk 0:02:35.2]} 11. e4 {[%clk
0:02:54.7]} 11... Bh7 {[%clk 0:02:31.4]} 12. f4 {[%clk 0:02:54.1]} 12... Re8
{[%clk 0:02:26.7]} 13. f5 {[%clk 0:02:48.5]} 13... Ne5 {[%clk 0:02:16.8]} 14. h3
{[%clk 0:02:45.1]} 14... a6 {[%clk 0:01:40.5]} 15. Bf4 {[%clk 0:02:33.4]} 15...
b5 {[%clk 0:01:34.7]} 16. Rc1 {[%clk 0:02:24]} 16... Ba5 {[%clk 0:01:23.1]} 17.
Qd2 {[%clk 0:02:05.3]} 17... Nc4 {[%clk 0:01:21.8]} 18. Qc2 {[%clk 0:02:03.8]}
18... Nh5 {[%clk 0:01:04.9]} 19. Kh2 {[%clk 0:01:55.5]} 19... Nxf4 {[%clk
0:01:01.4]} 20. gxf4 {[%clk 0:01:51.7]} 20... Ne3 {[%clk 0:01:01.5]} 21. Qd3
{[%clk 0:01:48.7]} 21... Nxf1+ {[%clk 0:01:01]} 22. Rxf1 {[%clk 0:01:48.3]}
22... Qf6 {[%clk 0:00:57.1]} 23. Bf3 {[%clk 0:01:37.5]} 23... Bb6 {[%clk
0:00:49.3]} 24. Ng3 {[%clk 0:01:33.1]} 24... c4 {[%clk 0:00:48.1]} 25. Qc2
{[%clk 0:01:30.5]} 25... Qd4 {[%clk 0:00:47.3]} 26. Nh5 {[%clk 0:01:23.4]} 26...
Qe3 {[%clk 0:00:20.6]} 27. Bg2 {[%clk 0:01:16.3]} 27... g6 {[%clk 0:00:19.1]}
28. Nf6+ {[%clk 0:01:14.8]} 28... Kg7 {[%clk 0:00:19.1]} 29. Nxe8+ {[%clk
0:01:13.9]} 29... Rxe8 {[%clk 0:00:20]} 30. Nd1 {[%clk 0:01:09.4]} 30... Qc5
{[%clk 0:00:19.3]} 31. Qc3+ {[%clk 0:01:07]} 31... f6 {[%clk 0:00:18.1]} 32.
fxg6 {[%clk 0:01:02.1]} 32... Bxg6 {[%clk 0:00:17.6]} 33. Nf2 {[%clk 0:00:56.2]}
33... Kf7 {[%clk 0:00:17.4]} 34. Ng4 {[%clk 0:00:54.4]} 34... h5 {[%clk
0:00:16]} 35. Qxf6+ {[%clk 0:00:53.5]} 35... Kg8 {[%clk 0:00:16.1]} 36. Qxg6+
{[%clk 0:00:52.2]} 36... Kf8 {[%clk 0:00:16.5]} 37. Nf6 {[%clk 0:00:49.2]} 37...
Ke7 {[%clk 0:00:13.5]} 38. Nxe8 {[%clk 0:00:43.1]} 38... Qe3 {[%clk 0:00:11.3]}
39. Qe6+ {[%clk 0:00:39.9]} 39... Kf8 {[%clk 0:00:11]} 40. Nf6 {[%clk
0:00:39.1]} 40... Qxf4+ {[%clk 0:00:09.9]} 41. Rxf4 {[%clk 0:00:38.3]} 1-0

[Event "*** Titled Tuesday Blitz"]
[Site "Chess.com"]
[Date "2020.11.10"]
[Round "3"]
[White "nakajo"]
[Black "ajedrezhoy"]
[Result "1-0"]
[WhiteElo "2449"]
[BlackElo "2225"]
[TimeControl "180+1"]
[EndTime "10:31:27 PST"]
[Termination "nakajo won on time"]

1. d4 {[%clk 0:03:00.9]} 1... Nf6 {[%clk 0:02:58.9]} 2. Nf3 {[%clk 0:03:01.2]}
2... c5 {[%clk 0:02:58.4]} 3. d5 {[%clk 0:03:00.5]} 3... b5 {[%clk 0:02:57.5]}
4. c4 {[%clk 0:02:57.9]} 4... g6 {[%clk 0:02:52.9]} 5. cxb5 {[%clk 0:02:55.3]}
5... Bg7 {[%clk 0:02:49.2]} 6. Nc3 {[%clk 0:02:55.2]} 6... e6 {[%clk 0:02:31.3]}
7. dxe6 {[%clk 0:02:39.8]} 7... fxe6 {[%clk 0:02:29.4]} 8. Qd6 {[%clk
0:02:39.3]} 8... Qe7 {[%clk 0:02:00.8]} 9. Bf4 {[%clk 0:02:31]} 9... Bb7 {[%clk
0:01:45.9]} 10. Rd1 {[%clk 0:02:21]} 10... Qxd6 {[%clk 0:01:21.9]} 11. Bxd6
{[%clk 0:02:20.3]} 11... Nd5 {[%clk 0:00:57.2]} 12. Be5 {[%clk 0:02:02.6]} 12...
Bxe5 {[%clk 0:00:46.3]} 13. Nxe5 {[%clk 0:02:03.5]} 13... Nxc3 {[%clk
0:00:45.9]} 14. bxc3 {[%clk 0:02:03.6]} 14... a6 {[%clk 0:00:30.7]} 15. Nc4
{[%clk 0:01:41.5]} 15... Ke7 {[%clk 0:00:19.8]} 16. b6 {[%clk 0:01:24.6]} 16...
Bd5 {[%clk 0:00:19.3]} 17. e3 {[%clk 0:01:22.3]} 17... Nc6 {[%clk 0:00:19]} 18.
b7 {[%clk 0:00:58.9]} 18... Rab8 {[%clk 0:00:17.3]} 19. Nb6 {[%clk 0:00:59.2]}
19... Rxb7 {[%clk 0:00:13.3]} 20. Nxd5+ {[%clk 0:00:59.3]} 20... exd5 {[%clk
0:00:12.8]} 21. Rxd5 {[%clk 0:00:57.4]} 21... d6 {[%clk 0:00:12.9]} 22. Bxa6
{[%clk 0:00:52.9]} 22... Rb1+ {[%clk 0:00:10.9]} 23. Rd1 {[%clk 0:00:52.2]}
23... Rb2 {[%clk 0:00:10.3]} 24. Bc4 {[%clk 0:00:49.3]} 24... Ne5 {[%clk
0:00:08.6]} 25. Bd5 {[%clk 0:00:47.7]} 25... Rc2 {[%clk 0:00:06.6]} 26. O-O
{[%clk 0:00:37.1]} 26... Rxc3 {[%clk 0:00:06.4]} 27. Rb1 {[%clk 0:00:36.6]}
27... Rd8 {[%clk 0:00:05.3]} 28. Rfd1 {[%clk 0:00:33.7]} 28... Ra3 {[%clk
0:00:04.3]} 29. h3 {[%clk 0:00:31.6]} 29... Rd7 {[%clk 0:00:03.7]} 30. Rb8
{[%clk 0:00:29.9]} 30... Rda7 {[%clk 0:00:02.2]} 31. Rh8 {[%clk 0:00:26.9]}
31... Kf6 {[%clk 0:00:02]} 32. f4 {[%clk 0:00:24.8]} 1-0